bitfinex/quotes_ETHUSD_20230110
["timestamp","ask_amount","ask_price","bid_price","bid_amount"]
[1673349944390,46.6504031,1331.7,1331.6,0.15933025]
[1673349945046,38.19863396,1331.7,1331.6,0.15933025]
[1673349945324,34.1259246,1331.7,1331.6,0.15933025]
[1673349946209,38.19868888,1331.7,1331.6,0.15933025]
[1673349946428,35.39099492,1331.7,1331.6,0.15933025]
[1673349947156,34.12566354,1331.7,1331.6,0.15933025]
[1673349947316,38.19842782,1331.7,1331.6,0.15933025]
[1673349947771,31.31823064,1331.7,1331.6,0.15933025]
[1673349947992,34.12566306,1331.7,1331.6,0.15933025]
[1673349950581,26.61647306,1331.7,1331.6,0.15933025]
[1673349951419,19.10728306,1331.7,1331.6,0.15933025]
[1673349951631,11.59809306,1331.7,1331.6,0.15933025]
[1673349951993,19.10728306,1331.7,1331.6,0.15933025]
[1673349952377,21.35270953,1331.7,1331.6,0.15933025]
[1673349954199,28.86189953,1331.7,1331.6,0.15933025]
[1673349955030,28.86189953,1331.7,1331.6,0.15692317]
[1673349955251,36.37108953,1331.7,1331.6,0.15692317]
[1673349957045,36.37111077,1331.7,1331.6,0.15692317]
[1673349959157,34.12566306,1331.7,1331.6,0.15692317]
[1673349959312,32.42866306,1331.7,1331.6,0.15692317]
[1673349960200,19.10728306,1331.7,1331.6,0.15692317]
[1673349960397,34.12566306,1331.7,1331.6,0.15692317]
[1673349960728,34.68906306,1331.7,1331.6,0.15692317]
[1673349961684,34.12566306,1331.7,1331.6,0.15692317]
[1673349964084,42.02666306,1331.7,1331.6,0.15692317]
[1673349964296,26.61647306,1331.7,1331.6,0.15692317]
[1673349964511,34.68906306,1331.7,1331.6,0.15692317]
[1673349965003,34.12566306,1331.7,1331.6,0.15692317]
[1673349966099,31.31823064,1331.7,1331.6,0.15692317]
[1673349966451,2.84987683,1331.6,1331.5,0.13692925]
[1673349966661,31.9609141,1331.6,1331.5,0.13692925]
[1673349966878,32.0269141,1331.6,1331.5,0.13692925]
[1673349968169,29.21908264,1331.6,1331.5,0.13692925]
[1673349969451,32.0269141,1331.6,1331.5,0.13692925]
[1673349969663,29.21908264,1331.6,1331.5,0.13692925]
[1673349971447,32.0269141,1331.6,1331.5,0.13692925]
[1673349971813,8.37445811,1331.6,1331.5,0.13692925]
[1673349972039,5.25012737,1331.9,1331.5,3.93458989]
[1673349972247,3.93175026,1331.9,1331.6,16.04633132]
[1673349972493,2.3128167,1332.0,1331.7,7.11191862]
[1673349972725,2.80852088,1332.0,1331.8,34.71178664]
[1673349972899,0.066,1332.1,1332.0,3.10507618]
[1673349973072,2.2468167,1332.2,1332.0,29.02157618]
[1673349973286,0.066,1332.3,1332.1,16.71031]
[1673349973552,2.29419921,1332.4,1332.1,16.77509005]
[1673349973777,2.29419921,1332.4,1332.1,24.28203005]
[1673349973990,0.539,1332.3,1332.2,1.692]
[1673349974183,0.539,1332.3,1332.2,10.89516]
[1673349974396,0.539,1332.3,1332.2,20.22371072]
[1673349975825,0.539,1332.3,1332.2,12.71733072]
[1673349980035,0.539,1332.3,1332.2,20.22371072]
[1673349980399,0.539,1332.3,1332.2,12.71733072]
[1673349980972,0.539,1332.3,1332.2,20.22371072]
[1673349981184,0.539,1332.3,1332.2,12.71733072]
[1673349981652,0.539,1332.3,1332.2,20.22371072]
[1673349982187,0.539,1332.3,1332.2,12.71733072]
[1673349982593,0.539,1332.3,1332.2,20.22371072]
[1673349990544,0.539,1332.3,1332.2,27.73009072]
[1673349990962,0.539,1332.3,1332.2,20.22371072]
[1673349991922,0.539,1332.3,1332.2,18.53171072]
[1673349992345,0.539,1332.3,1332.2,26.03809072]
[1673349993278,0.539,1332.3,1332.2,18.53171072]
[1673349994122,0.539,1332.3,1332.2,26.03567704]
[1673349995439,0.04738251,1332.4,1332.2,26.03567704]
[1673349996746,0.04738251,1332.4,1332.2,0.064]
[1673349996747,3.79766064,1332.3,1332.2,0.064]
[1673349997088,23.0530116,1332.3,1332.0,3.10507618]
[1673349997407,7.50694,1332.1,1332.0,3.10507618]
[1673349997641,11.37060064,1332.1,1332.0,3.10507618]
[1673349997794,18.87754064,1332.1,1332.0,3.10507618]
[1673349999055,26.38448064,1332.1,1332.0,3.10507618]
[1673350000682,28.08148064,1332.1,1332.0,3.10507618]
[1673350003281,28.07815207,1332.1,1332.0,3.10507618]
[1673350003857,49.19395004,1332.1,1331.9,0.066]
[1673350003991,49.19395004,1332.1,1331.5,0.13692925]
[1673350003992,17.44975892,1332.0,1331.5,0.13692925]
[1673350004204,3.79766064,1331.8,1331.5,0.13692925]
[1673350004426,26.32523064,1331.7,1331.5,0.13692925]
[1673350004663,3.79766064,1331.6,1331.5,0.13692925]
[1673350004832,11.30742064,1331.6,1331.5,0.13692925]
[1673350005039,11.37342064,1331.6,1331.5,0.13692925]
[1673350006840,18.88318064,1331.6,1331.5,0.13692925]
[1673350009000,26.39294064,1331.6,1331.5,0.13692925]
[1673350011613,18.88318064,1331.6,1331.5,0.13692925]
[1673350013028,17.7650288,1331.6,1331.5,0.13692925]
[1673350015159,25.2747888,1331.6,1331.5,0.13692925]
[1673350015339,23.28690544,1331.6,1331.5,0.13692925]
[1673350017158,1.9153,1331.8,1331.5,0.13692925]
[1673350017349,4.412,1332.0,1331.5,27.2176689]
[1673350017350,0.066,1332.0,1331.5,27.2176689]
[1673350017544,30.406,1332.2,1331.6,12.35082763]
[1673350017750,30.406,1332.2,1331.7,28.57926767]
[1673350018010,30.406,1332.2,1331.8,4.19002586]
[1673350018181,30.406,1332.2,1331.9,22.52385]
[1673350018395,0.066,1332.2,1331.9,9.66706901]
[1673350018613,0.5631,1332.3,1331.9,9.66706901]
[1673350018822,4.36076064,1332.3,1331.9,9.66706901]
[1673350019911,4.36076064,1332.3,1332.0,1.352]
[1673350020217,4.36076064,1332.3,1332.1,8.85894]
[1673350020430,3.79766064,1332.3,1332.1,1.418]
[1673350020646,3.79766064,1332.3,1332.1,1.352]
[1673350026713,3.79766064,1332.3,1332.1,8.85886]
[1673350027029,3.79766064,1332.3,1332.1,11.66774465]
[1673350029113,3.79766064,1332.3,1332.1,4.16088465]
[1673350029329,3.79766064,1332.3,1332.1,2.74288465]
[1673350037195,3.79766064,1332.3,1332.1,10.24975465]
[1673350037456,3.79766064,1332.3,1332.1,10.31575465]
[1673350038302,3.79766064,1332.3,1332.1,2.80888465]
[1673350038612,3.79766064,1332.3,1332.1,2.74288465]
[1673350042163,3.79766064,1332.3,1332.1,5.24058489]
[1673350042501,3.79766064,1332.3,1332.1,10.31347489]
[1673350042880,0.11338251,1332.4,1332.1,29.51738075]
[1673350043077,3.84504315,1332.4,1332.1,31.62149976]
[1673350043289,0.04738251,1332.4,1332.3,15.01162]
[1673350043502,0.04738251,1332.4,1332.3,25.085181]
[1673350045202,0.04738251,1332.4,1332.3,17.579371]
[1673350045477,0.04738251,1332.4,1332.3,10.073561]
[1673350045663,0.04738251,1332.4,1332.3,17.579371]
[1673350046141,0.04738251,1332.4,1332.3,25.085181]
[1673350046343,0.04738251,1332.4,1332.3,17.579371]
[1673350046787,0.04738251,1332.4,1332.3,25.085181]
[1673350048128,0.04738251,1332.4,1332.3,17.579371]
[1673350048334,1.66538251,1332.4,1332.3,0.066]
[1673350048565,1.66538251,1332.4,1332.1,14.31641901]
[1673350048566,27.97879315,1332.4,1332.1,14.31641901]
[1673350048792,13.03429315,1332.4,1332.1,14.31641901]
[1673350049289,20.53954315,1332.4,1332.1,14.31641901]
[1673350049959,20.53954315,1332.4,1332.1,0.81811901]
[1673350050282,20.53954315,1332.4,1332.1,0.75211901]
[1673350050594,13.03429315,1332.4,1332.1,0.75211901]
[1673350050980,13.03429315,1332.4,1332.1,8.25898901]
[1673350051191,13.03429315,1332.4,1332.1,7.57287]
[1673350053880,11.30374064,1332.3,1332.1,0.066]
[1673350054061,18.87582064,1332.3,1332.0,0.066]
[1673350054275,18.87582064,1332.3,1331.9,26.45319]
[1673350054468,18.87582064,1332.3,1331.9,31.0166079]
[1673350054866,18.87582064,1332.3,1331.9,41.31901595]
[1673350055124,18.87582064,1332.3,1331.9,38.5246779]
[1673350055694,11.36974064,1332.3,1331.9,38.5246779]
[1673350056764,11.36974064,1332.3,1332.0,1.86288335]
[1673350056989,11.36974064,1332.3,1332.0,4.65720838]
[1673350057228,11.36974064,1332.3,1332.0,9.8936248]
[1673350057424,11.36974064,1332.3,1332.0,7.4596248]
[1673350058332,11.36974064,1332.3,1332.0,14.9670748]
[1673350059026,7.39647734,1332.2,1332.0,0.066]
[1673350059258,15.01388,1332.1,1331.8,13.5599]
[1673350059394,15.07988,1332.1,1331.8,0.066]
[1673350059753,15.07988,1332.1,1331.7,18.40285139]
[1673350060068,7.57294,1332.1,1331.8,1.8631196]
[1673350060291,7.57294,1332.1,1331.8,4.3631196]
[1673350060454,7.57294,1332.1,1331.8,2.5]
[1673350060699,0.066,1332.1,1331.8,18.64295942]
[1673350060892,13.28574064,1332.2,1331.9,1.86302692]
[1673350061546,33.28574064,1332.2,1331.9,1.86302692]
[1673350061751,40.79257064,1332.2,1331.9,1.86302692]
[1673350062677,33.28569064,1332.2,1331.9,1.86302692]
[1673350063727,33.28569064,1332.2,1331.9,1.85999027]
[1673350064675,40.79252064,1332.2,1331.9,1.85999027]
[1673350066566,50.54616734,1332.2,1331.8,2.86077219]
[1673350066774,50.54616734,1332.2,1331.7,15.19265601]
[1673350067039,54.7361932,1332.2,1331.7,15.19265601]
[1673350067205,54.7361932,1332.2,1331.7,15.94477502]
[1673350067669,54.7361932,1332.2,1331.7,23.45390502]
[1673350068086,50.54616734,1332.2,1331.7,23.45390502]
[1673350068302,54.7361932,1332.2,1331.7,23.45390502]
[1673350068525,50.54616734,1332.2,1331.7,23.45390502]
[1673350068715,54.7361932,1332.2,1331.7,23.45390502]
[1673350068926,50.54616734,1332.2,1331.7,23.45390502]
[1673350069137,54.7361932,1332.2,1331.7,23.45390502]
[1673350069943,5.14466064,1331.9,1331.7,2.86077219]
[1673350070236,24.9202465,1331.8,1331.6,0.066]
[1673350070554,18.81604064,1331.7,1331.5,0.13692925]
[1673350070772,3.79766064,1331.6,1331.5,0.13692925]
[1673350070926,2.67946252,1331.6,1331.5,0.13692925]
[1673350071135,0.066,1331.7,1331.5,0.13692925]
[1673350071452,5.14966064,1331.7,1331.5,0.13692925]
[1673350071695,5.21566064,1331.7,1331.5,0.13692925]
[1673350071887,12.72488064,1331.7,1331.5,0.13692925]
[1673350072940,20.23410064,1331.7,1331.5,0.13692925]
[1673350073338,18.88210064,1331.7,1331.5,0.13692925]
[1673350075546,26.39132064,1331.7,1331.5,0.13692925]
[1673350076175,11.37288064,1331.7,1331.5,0.13692925]
[1673350082304,11.37285064,1331.7,1331.5,0.13692925]
[1673350085861,3.86366064,1331.7,1331.5,0.13692925]
[1673350086073,3.79766064,1331.7,1331.5,0.13692925]
[1673350086283,11.30688064,1331.7,1331.5,0.13692925]
[1673350086513,11.37288064,1331.7,1331.5,0.13692925]
[1673350087483,3.86366064,1331.7,1331.5,0.13692925]
[1673350087703,11.30697064,1331.7,1331.5,0.13692925]
[1673350087915,11.37297064,1331.7,1331.5,0.13692925]
[1673350088068,3.86366064,1331.7,1331.5,0.13692925]
[1673350088278,3.79766064,1331.7,1331.5,0.13692925]
[1673350088924,20.6293,1331.8,1331.7,0.66765361]
[1673350089905,0.6293,1331.8,1331.7,8.17684361]
[1673350090080,0.5633,1331.8,1331.7,10.56904197]
[1673350090290,0.7643,1331.8,1331.7,10.56904197]
[1673350090517,0.201,1331.8,1331.7,10.56904197]
[1673350090910,0.201,1331.8,1331.7,3.05985197]
[1673350091115,0.201,1331.8,1331.7,2.99385197]
[1673350093782,0.19739776,1331.8,1331.7,2.99385197]
[1673350094010,0.19739776,1331.8,1331.7,10.50304197]
[1673350094318,0.19739776,1331.8,1331.7,18.07823197]
[1673350094477,0.19739776,1331.8,1331.7,10.56904197]
[1673350094685,0.19739776,1331.8,1331.7,25.58742197]
[1673350094925,0.19739776,1331.8,1331.7,18.07823197]
[1673350097965,0.19739776,1331.8,1331.7,25.58742197]
[1673350098423,0.19739776,1331.8,1331.7,19.94142597]
[1673350098638,0.19739776,1331.8,1331.7,25.58742197]
[1673350099139,0.19739776,1331.8,1331.7,27.45057867]
[1673350102370,0.19739776,1331.8,1331.7,27.45062655]
[1673350104399,0.19739776,1331.8,1331.7,28.57669597]
[1673350105727,0.19739776,1331.8,1331.7,31.37155021]
[1673350106209,0.19739776,1331.8,1331.7,3.05985197]
[1673350106387,0.76439776,1331.8,1331.7,0.66765361]
[1673350106584,0.19739776,1331.8,1331.7,0.66765361]
[1673350106778,0.76439776,1331.8,1331.7,0.66765361]
[1673350107199,0.19739776,1331.8,1331.7,0.66765361]
[1673350110993,21.418,1331.9,1331.7,0.66765361]
[1673350111205,0.097,1331.8,1331.7,0.66765361]
[1673350119660,0.097,1331.8,1331.7,8.17684361]
[1673350119828,0.097,1331.8,1331.7,8.24284361]
[1673350120251,0.097,1331.8,1331.7,0.73365361]
[1673350120470,0.097,1331.8,1331.7,0.66765361]
[1673350123867,12.93126054,1331.8,1331.7,0.66765361]
[1673350124084,42.08538625,1331.8,1331.7,0.66765361]
[1673350124269,44.89390713,1331.8,1331.7,0.66765361]
[1673350124449,44.89315023,1331.8,1331.7,0.66765361]
[1673350124662,42.64709043,1331.8,1331.7,0.66765361]
[1673350125448,44.89313618,1331.8,1331.7,0.66765361]
[1673350125932,44.89313618,1331.8,1331.5,0.13692925]
[1673350126148,8.85076,1331.6,1331.5,0.13692925]
[1673350126354,12.71442064,1331.6,1331.5,0.13692925]
[1673350126565,32.71442064,1331.6,1331.5,0.13692925]
[1673350129173,25.20466064,1331.6,1331.5,0.13692925]
[1673350129389,23.86366064,1331.6,1331.5,0.13692925]
[1673350132229,23.86366064,1331.6,1331.5,0.13417274]
[1673350134448,20.066,1331.6,1331.5,15.15481274]
[1673350134687,20.066,1331.6,1331.5,15.22081274]
[1673350135003,20.066,1331.6,1331.5,7.71049274]
[1673350135215,20.066,1331.6,1331.5,10.00230889]
[1673350135543,18.14419306,1331.6,1331.5,10.00230889]
[1673350136664,18.14419306,1331.6,1331.5,2.49198889]
[1673350136904,18.14419306,1331.6,1331.5,2.42598889]
[1673350138455,18.14419306,1331.6,1331.5,0.13417274]
[1673350144078,18.14419306,1331.6,1331.5,1.99772236]
[1673350144802,18.14419306,1331.6,1331.5,0.13417274]
[1673350145759,18.14419306,1331.6,1331.5,7.64449274]
[1673350145972,18.14419306,1331.6,1331.5,32.10498326]
[1673350146179,18.14419306,1331.6,1331.5,37.02083367]
[1673350146397,18.14419306,1331.6,1331.5,43.09176528]
[1673350146705,18.14419306,1331.6,1331.5,48.13352588]
[1673350146706,0.066,1331.6,1331.5,48.13352588]
[1673350146934,0.097,1331.8,1331.5,55.77862588]
[1673350147241,0.097,1331.8,1331.6,9.63506854]
[1673350147395,0.097,1331.8,1331.7,1.86353052]
[1673350148557,0.097,1331.8,1331.7,9.37272052]
[1673350148760,0.097,1331.8,1331.7,9.43872052]
[1673350149323,0.097,1331.8,1331.7,1.684]
[1673350149515,0.097,1331.8,1331.7,1.618]
[1673350149878,0.097,1331.8,1331.7,5.31301364]
[1673350150072,0.097,1331.8,1331.7,5.37901364]
[1673350150581,0.097,1331.8,1331.7,7.24232381]
[1673350151016,33.96480306,1332.0,1331.7,7.24232381]
[1673350151337,15.01622,1331.9,1331.7,0.066]
[1673350151644,22.59067,1331.9,1331.6,0.066]
[1673350151861,22.59067,1331.9,1331.5,14.82274326]
[1673350152072,26.38833064,1331.9,1331.6,1.86340078]
[1673350152384,11.37177064,1331.9,1331.6,1.86340078]
[1673350152556,11.37177064,1331.9,1331.6,3.52617284]
[1673350152778,11.37177064,1331.9,1331.6,1.66277206]
[1673350155311,13.06877064,1331.9,1331.5,26.78509234]
[1673350155532,13.06877064,1331.9,1331.6,1.86340132]
[1673350155874,28.08567064,1331.9,1331.5,8.9697842]
[1673350158180,20.57722064,1331.9,1331.6,1.86344609]
[1673350161708,28.08567064,1331.9,1331.5,8.9697842]
[1673350161917,28.08567064,1331.9,1331.5,12.3752845]
[1673350162352,28.08567064,1331.9,1331.6,4.36345415]
[1673350162705,28.08567064,1331.9,1331.5,12.3752845]
[1673350162872,28.08567064,1331.9,1331.6,1.86345441]
[1673350163509,20.57722064,1331.9,1331.6,1.86345441]
[1673350166171,20.57722064,1331.9,1331.6,3.2873283]
[1673350166349,20.57722064,1331.9,1331.6,1.42387389]
[1673350167406,13.06877064,1331.9,1331.6,1.42387389]
[1673350168248,20.57684064,1331.9,1331.5,22.68064264]
[1673350168481,20.57684064,1331.9,1331.6,1.86341847]
[1673350168690,22.82288639,1331.9,1331.6,1.86341847]
[1673350168857,22.82288639,1331.9,1331.5,19.8855445]
[1673350169067,22.82288639,1331.9,1331.5,11.25077304]
[1673350169068,33.13947727,1331.9,1331.5,11.25077304]
[1673350169418,7.50919,1331.7,1331.5,7.84527274]
[1673350169625,7.50919,1331.7,1331.5,0.20017274]
[1673350169626,7.57519,1331.7,1331.5,0.20017274]
[1673350169799,0.066,1331.7,1331.5,0.13417274]
[1673350170010,19.59021575,1331.8,1331.5,0.13417274]
[1673350170220,23.38787639,1331.8,1331.5,0.13417274]
[1673350170430,7.50925,1331.7,1331.5,0.13417274]
[1673350170675,7.57525,1331.7,1331.5,0.13417274]
[1673350171793,0.066,1331.7,1331.5,0.13417274]
[1673350172005,57.55719639,1331.8,1331.5,0.13417274]
[1673350172324,16.71252,1331.6,1331.5,0.13417274]
[1673350172555,20.57618064,1331.6,1331.5,0.13417274]
[1673350172763,28.64934064,1331.6,1331.5,0.13417274]
[1673350173194,20.57618064,1331.6,1331.5,0.13417274]
[1673350174737,20.57618064,1331.6,1331.5,0.13105321]
[1673350176629,29.78294064,1331.6,1331.5,0.13105321]
[1673350176839,33.9538997,1331.6,1331.5,0.13105321]
[1673350177053,29.78294064,1331.6,1331.5,0.13105321]
[1673350178304,20.28510291,1331.6,1331.5,0.13105321]
[1673350178543,29.49186291,1331.6,1331.5,0.13105321]
[1673350180937,11.07834291,1331.6,1331.5,0.13105321]
[1673350181382,3.86366064,1331.6,1331.5,0.13105321]
[1673350181594,3.79766064,1331.6,1331.5,0.13105321]
[1673350182092,11.30742064,1331.6,1331.5,0.13105321]
[1673350182321,11.37342064,1331.6,1331.5,0.13105321]
[1673350183683,18.88318064,1331.6,1331.5,0.13105321]
[1673350184572,11.37342064,1331.6,1331.5,0.13105321]
[1673350184893,11.37342064,1331.6,1331.5,2.13105321]
[1673350190038,26.39294064,1331.6,1331.5,2.13105321]
[1673350190252,18.88318064,1331.6,1331.5,2.13105321]
[1673350197034,26.39294064,1331.6,1331.5,2.13105321]
[1673350197242,18.88318064,1331.6,1331.5,2.13105321]
[1673350198749,18.88318064,1331.6,1331.5,2.12848038]
[1673350199338,20.58018064,1331.6,1331.5,2.12848038]
[1673350200605,23.58018064,1331.6,1331.5,2.12848038]
[1673350203263,31.08994064,1331.6,1331.5,2.12848038]
[1673350204327,23.58018064,1331.6,1331.5,2.12848038]
[1673350205164,31.08994064,1331.6,1331.5,2.12848038]
[1673350206697,0.066,1331.6,1331.5,17.14912038]
[1673350207003,18.14419306,1331.7,1331.6,1.536]
[1673350209259,18.14419306,1331.7,1331.6,0.066]
[1673350211236,25.65338306,1331.7,1331.6,0.066]
[1673350216088,18.14419306,1331.7,1331.6,1.536]
[1673350216348,18.14419306,1331.7,1331.6,1.92559973]
[1673350216728,18.14419306,1331.7,1331.6,0.45559973]
[1673350221065,18.14419306,1331.7,1331.6,0.38959973]
[1673350222111,18.14419306,1331.7,1331.6,7.89935973]
[1673350222317,18.14419306,1331.7,1331.6,7.96535973]
[1673350222550,0.066,1331.7,1331.6,7.96535973]
[1673350222762,27.33633114,1331.9,1331.6,7.96535973]
[1673350225548,1.68579233,1331.8,1331.6,0.45559973]
[1673350225758,1.68579233,1331.8,1331.5,46.61628729]
[1673350226012,1.68227024,1331.8,1331.5,46.61628729]
[1673350227441,1.68227024,1331.8,1331.5,39.10620729]
[1673350227963,1.68227024,1331.8,1331.5,31.59614729]
[1673350229043,1.68227024,1331.8,1331.5,24.08609729]
[1673350229362,1.68227024,1331.8,1331.5,31.59626729]
[1673350229763,1.68227024,1331.8,1331.5,39.10658729]
[1673350229968,1.68227024,1331.8,1331.5,31.59626729]
[1673350230203,9.19095024,1331.8,1331.5,24.08609729]
[1673350230392,1.74827024,1331.8,1331.5,24.08609729]
[1673350230603,1.68227024,1331.8,1331.5,31.59618729]
[1673350231591,1.68227024,1331.8,1331.5,24.08609729]
[1673350232014,9.19117024,1331.8,1331.5,24.08609729]
[1673350232227,1.74827024,1331.8,1331.5,24.08609729]
[1673350232382,9.19107024,1331.8,1331.5,24.08609729]
[1673350232591,9.25707024,1331.8,1331.5,24.08609729]
[1673350232801,1.74827024,1331.8,1331.5,24.08609729]
[1673350233053,1.68227024,1331.8,1331.5,24.08609729]
[1673350233582,9.19091024,1331.8,1331.5,24.08609729]
[1673350233846,9.25696024,1331.8,1331.5,24.08609729]
[1673350234018,1.74827024,1331.8,1331.5,24.08609729]
[1673350234171,1.68227024,1331.8,1331.5,31.59636729]
[1673350234380,1.68227024,1331.8,1331.5,34.39168422]
[1673350234703,1.68227024,1331.8,1331.5,31.59636729]
[1673350235133,1.68227024,1331.8,1331.5,39.10663729]
[1673350235364,1.68227024,1331.8,1331.5,34.39169527]
[1673350237856,11.43709599,1331.8,1331.5,24.08609729]
[1673350238061,11.50309599,1331.8,1331.5,24.08609729]
[1673350239319,3.99431599,1331.8,1331.5,31.59640729]
[1673350239529,3.92831599,1331.8,1331.5,31.59640729]
[1673350241468,6.42831599,1331.8,1331.5,31.59640729]
[1673350241635,3.99431599,1331.8,1331.5,31.59640729]
[1673350241848,3.92831599,1331.8,1331.5,31.59640729]
[1673350242065,11.43713599,1331.8,1331.5,24.08609729]
[1673350242275,19.01195599,1331.8,1331.5,24.08609729]
[1673350242514,5.47993088,1331.7,1331.5,2.19448038]
[1673350242725,5.47993088,1331.6,1331.5,2.12848038]
[1673350242915,5.54593088,1331.6,1331.5,2.12848038]
[1673350243743,3.86366064,1331.6,1331.5,2.12848038]
[1673350243983,5.47993088,1331.6,1331.5,2.12848038]
[1673350244165,3.86366064,1331.6,1331.5,2.12848038]
[1673350244516,3.79766064,1331.6,1331.5,2.12848038]
[1673350244924,5.47993088,1331.6,1331.5,2.12848038]
[1673350245255,3.86366064,1331.6,1331.5,2.12848038]
[1673350245472,5.69131599,1331.7,1331.5,17.14912038]
[1673350245621,4.55771599,1331.7,1331.5,24.72544038]
[1673350245831,4.49171599,1331.7,1331.5,24.72544038]
[1673350246084,3.92831599,1331.7,1331.5,24.72544038]
[1673350246293,1.68227024,1331.7,1331.5,24.72544038]
[1673350246505,1.68227024,1331.7,1331.5,17.21512038]
[1673350247330,1.68227024,1331.7,1331.5,19.8165064]
[1673350248775,1.68227024,1331.7,1331.5,12.3061864]
[1673350251561,30.22521599,1331.8,1331.5,28.45133786]
[1673350251768,30.22521599,1331.8,1331.6,1.86350497]
[1673350252087,11.77221599,1331.8,1331.6,16.88223497]
[1673350252237,9.52617024,1331.8,1331.6,15.08473]
[1673350253131,9.52617024,1331.8,1331.6,18.20921279]
[1673350253327,11.77221599,1331.8,1331.6,0.066]
[1673350253653,11.77221599,1331.8,1331.6,7.5096]
[1673350253869,11.77221599,1331.8,1331.6,0.066]
[1673350254056,11.77221599,1331.8,1331.5,23.73583787]
[1673350254247,11.77221599,1331.8,1331.6,9.37315081]
[1673350254445,9.52617024,1331.8,1331.6,13.38653887]
[1673350254658,9.52617024,1331.8,1331.6,10.88653887]
[1673350255201,9.52617024,1331.8,1331.6,3.37689887]
[1673350255410,9.52617024,1331.8,1331.6,3.31089887]
[1673350256978,9.52617024,1331.8,1331.5,16.22579787]
[1673350257195,9.52617024,1331.8,1331.6,1.86348928]
[1673350258861,9.52617024,1331.8,1331.6,4.36348928]
[1673350259100,9.52617024,1331.8,1331.5,26.23589787]
[1673350259312,0.066,1331.8,1331.7,7.50919]
[1673350259533,19.8264633,1331.9,1331.8,1.05198809]
[1673350259759,18.14419306,1331.9,1331.8,1.05198809]
[1673350260700,24.18789945,1331.9,1331.8,1.05198809]
[1673350265103,24.18789945,1331.9,1331.8,1.11267809]
[1673350269258,22.08723881,1331.9,1331.8,1.11267809]
[1673350272518,19.84119306,1331.9,1331.8,1.11267809]
[1673350273695,18.14419306,1331.9,1331.8,1.11267809]
[1673350273890,18.14419306,1331.9,1331.8,3.4832339]
[1673350274562,18.14419306,1331.9,1331.8,10.9918639]
[1673350274787,18.14419306,1331.9,1331.8,11.0578639]
[1673350274950,18.14419306,1331.9,1331.8,20.42965704]
[1673350275462,18.14419306,1331.9,1331.8,18.5664939]
[1673350276640,0.066,1331.9,1331.8,18.5664939]
[1673350276976,0.272,1332.0,1331.8,18.5664939]
[1673350277990,0.272,1332.0,1331.8,8.68730809]
[1673350278407,0.272,1332.0,1331.8,1.17867809]
[1673350278640,0.272,1332.0,1331.8,1.11267809]
[1673350281305,25.04069575,1332.0,1331.8,1.11267809]
[1673350281521,25.10669575,1332.0,1331.8,1.11267809]
[1673350281923,17.59904575,1332.0,1331.8,1.11267809]
[1673350282370,25.10654575,1332.0,1331.8,1.11267809]
[1673350282973,18.16224575,1332.0,1331.8,1.11267809]
[1673350283184,3.14724575,1332.0,1331.8,1.10952251]
[1673350283534,3.08124575,1332.0,1331.8,1.10952251]
[1673350284992,6.87890639,1332.0,1331.8,1.10952251]
[1673350285347,9.75342727,1332.0,1331.8,1.10952251]
[1673350285494,18.95796727,1332.0,1331.8,1.10952251]
[1673350285708,2.24604575,1331.9,1331.8,1.10952251]
[1673350286021,18.95796727,1332.0,1331.8,1.10952251]
[1673350287432,2.24604575,1331.9,1331.8,1.10952251]
[1673350288267,11.89412123,1331.9,1331.8,1.10952251]
[1673350288490,25.50664904,1331.9,1331.8,1.10952251]
[1673350288704,23.26066636,1331.9,1331.8,1.10952251]
[1673350289122,31.33203636,1331.9,1331.8,1.10952251]
[1673350289377,33.02903636,1331.9,1331.8,1.10952251]
[1673350290164,41.09865713,1331.9,1331.8,1.10952251]
[1673350293466,37.72858548,1331.9,1331.8,1.10952251]
[1673350293619,41.09865713,1331.9,1331.8,1.10952251]
[1673350294085,37.72858548,1331.9,1331.8,1.10952251]
[1673350297562,40.53312118,1331.9,1331.8,1.10952251]
[1673350298367,33.02505118,1331.9,1331.8,1.10952251]
[1673350299190,40.53312118,1331.9,1331.8,1.10952251]
[1673350299437,40.53273104,1331.9,1331.8,1.10952251]
[1673350300259,37.72858548,1331.9,1331.8,1.10952251]
[1673350300469,33.02470498,1331.9,1331.8,1.10952251]
[1673350301124,40.53277498,1331.9,1331.8,1.10952251]
[1673350302699,13.85115014,1331.9,1331.8,1.10952251]
[1673350302869,12.15815014,1331.9,1331.8,1.10952251]
[1673350303080,23.82147873,1331.9,1331.8,1.10952251]
[1673350303346,31.32954873,1331.9,1331.8,1.10952251]
[1673350304582,38.83761873,1331.9,1331.8,1.10952251]
[1673350304812,38.83743501,1331.9,1331.8,1.10952251]
[1673350306488,36.03342923,1331.9,1331.8,1.10952251]
[1673350309176,39.40350088,1331.9,1331.8,1.10952251]
[1673350309392,41.10050088,1331.9,1331.8,1.10952251]
[1673350311094,37.73042923,1331.9,1331.8,1.10952251]
[1673350313073,41.10050088,1331.9,1331.8,1.10952251]
[1673350313283,37.73042923,1331.9,1331.8,1.10952251]
[1673350315555,41.10050088,1331.9,1331.8,1.10952251]
[1673350315702,41.10050088,1331.9,1331.8,0.06069]
[1673350317236,37.73042923,1331.9,1331.8,0.06069]
[1673350317661,41.10050088,1331.9,1331.8,0.06069]
[1673350319997,39.40350088,1331.9,1331.8,0.06069]
[1673350324254,36.03342923,1331.9,1331.8,0.06069]
[1673350324485,39.96491127,1331.9,1331.8,0.06069]
[1673350325002,36.03342923,1331.9,1331.8,0.06069]
[1673350325608,39.96491127,1331.9,1331.8,0.06069]
[1673350326688,41.65691127,1331.9,1331.8,0.06069]
[1673350327396,41.65691127,1331.9,1331.8,0.05808155]
[1673350345705,37.72542923,1331.9,1331.8,0.05808155]
[1673350345925,41.66067601,1331.9,1331.8,0.05808155]
[1673350346367,37.72542923,1331.9,1331.8,0.05808155]
[1673350347371,38.47754824,1331.9,1331.8,0.05808155]
[1673350350123,38.47754824,1331.9,1331.8,0.05495271]
[1673350350570,43.12305443,1331.9,1331.8,0.05495271]
[1673350350955,38.47754824,1331.9,1331.8,0.05495271]
[1673350353480,43.12305443,1331.9,1331.8,0.05495271]
[1673350353695,38.47754824,1331.9,1331.8,0.05495271]
[1673350355293,43.93525694,1331.9,1331.8,2.71e-06]
[1673350355507,2.5,1331.8,1331.5,2.12615634]
[1673350355722,25.33940328,1331.6,1331.5,2.12615634]
[1673350355934,29.43306392,1331.6,1331.5,2.12615634]
[1673350356096,50.51125698,1331.6,1331.5,2.12615634]
[1673350358671,51.07328163,1331.6,1331.5,2.12615634]
[1673350359297,52.75928163,1331.6,1331.5,2.12615634]
[1673350360911,49.3871337,1331.6,1331.5,2.12615634]
[1673350362960,47.7011337,1331.6,1331.5,2.12615634]
[1673350365865,50.51068498,1331.6,1331.5,2.12615634]
[1673350367011,47.7011337,1331.6,1331.5,2.12615634]